fUSD/lending_fUSD_20250702
["ID","MTS","AMOUNT","RATE_DAILY","PERIOD"]
[369040573,1751442644549,-490.0,0.00016438,2]
[369040574,1751442644558,-1446.68,0.00016438,2]
[369040575,1751442644568,-490.0,0.00016438,2]
[369040576,1751442644578,-490.0,0.00016438,2]
[369040577,1751442644593,-490.0,0.00016438,2]
[369040578,1751442644603,-490.0,0.00016438,2]
[369040579,1751442644613,-500.0,0.00016438,2]
[369040580,1751442644623,-1090.92,0.00016438,2]
[369040581,1751442644635,-490.0,0.00016438,2]
[369040582,1751442644644,-490.0,0.00016438,2]
[369040583,1751442644654,-488.1477137,0.00016438,2]
[369040584,1751442644665,-490.0,0.00016438,2]
[369040585,1751442644676,-490.0,0.00016438,2]
[369040586,1751442644685,-490.0,0.00016438,2]
[369040587,1751442644695,-490.0,0.00016438,2]
[369040588,1751442644704,-490.0,0.00016438,2]
[369040589,1751442644714,-985.53,0.00016438,2]
[369040590,1751442644723,-1769.37,0.00016438,2]
[369040591,1751442644732,-490.0,0.00016438,2]
[369040592,1751442644741,-490.0,0.00016438,2]
[369040593,1751442644752,-490.0,0.00016438,2]
[369040594,1751442644761,-649.64,0.00016438,2]
[369040595,1751442644771,-1632.37,0.00016438,2]
[369040596,1751442644780,-490.0,0.00016438,2]
[369040597,1751442644790,-490.0,0.00016438,2]
[369040598,1751442644799,-490.0,0.00016438,2]
[369040599,1751442644808,-490.0,0.00016438,2]
[369040600,1751442644817,-490.0,0.00016438,2]
[369040601,1751442644827,-490.0,0.00016438,2]
[369040602,1751442644836,-490.0,0.00016438,2]
[369040603,1751442644846,-611.06,0.00016438,2]
[369040604,1751442644856,-490.0,0.00016438,2]
[369040605,1751442644866,-490.0,0.00016438,2]
[369040606,1751442644875,-881.26,0.00016438,2]
[369040607,1751442644884,-611.04,0.00016438,2]
[369040608,1751442644894,-490.0,0.00016438,2]
[369040609,1751442644903,-490.0,0.00016438,2]
[369040610,1751442644913,-490.0,0.00016438,2]
[369040611,1751442644922,-490.0,0.00016438,2]
[369040612,1751442644932,-490.0,0.00016438,2]
[369040613,1751442644941,-490.0,0.00016438,2]
[369040614,1751442644950,-490.0,0.00016438,2]
[369040615,1751442644960,-490.0,0.00016438,2]
[369040616,1751442644969,-490.0,0.00016438,2]
[369040617,1751442644978,-1006.1,0.00016438,2]
[369040618,1751442644988,-490.0,0.00016438,2]
[369040619,1751442644997,-490.0,0.00016438,2]
[369040620,1751442645007,-490.0,0.00016438,2]
[369040621,1751442645016,-490.0,0.00016438,2]
[369040622,1751442645026,-490.0,0.00016438,2]
[369040623,1751442645036,-490.0,0.00016438,2]
[369040624,1751442645046,-490.0,0.00016438,2]
[369040625,1751442645056,-490.0,0.00016438,2]
[369040626,1751442645066,-490.0,0.00016438,2]
[369040627,1751442645075,-588.12,0.00016438,2]
[369040628,1751442645084,-490.0,0.00016438,2]
[369040629,1751442645093,-536.47,0.00016438,2]
[369040630,1751442645103,-490.0,0.00016438,2]
[369040631,1751442645112,-490.0,0.00016438,2]
[369040632,1751442645121,-490.0,0.00016438,2]
[369040633,1751442645131,-490.0,0.00016438,2]
[369040634,1751442645140,-490.0,0.00016438,2]
[369040635,1751442645150,-490.0,0.00016438,2]
[369040636,1751442645159,-490.0,0.00016438,2]
[369040637,1751442645169,-2116.3,0.00016438,2]
[369040638,1751442645179,-490.0,0.00016438,2]
[369040639,1751442645188,-491.37245952,0.00016438,2]
[369040640,1751442645197,-1032.1,0.00016438,2]
[369040641,1751442645206,-1322.16,0.00016438,2]
[369040642,1751442645216,-490.0,0.00016438,2]
[369040643,1751442645225,-490.0,0.00016438,2]
[369040644,1751442645235,-1130.46,0.00016438,2]
[369040645,1751442645244,-490.0,0.00016438,2]
[369040646,1751442645254,-172.09101253,0.00016438,2]
[369040647,1751442645263,-632.19066942,0.00016438,2]
[369040648,1751442645272,-486.39871672,0.00016438,2]
[369040649,1751442645281,-490.0,0.00016438,2]
[369040650,1751442645291,-490.0,0.00016438,2]
[369040651,1751442645300,-490.0,0.00016438,2]
[369040652,1751442645309,-490.0,0.00016438,2]
[369040653,1751442645319,-490.0,0.00016438,2]
[369040654,1751442645329,-495.93,0.00016438,2]
[369040655,1751442645338,-490.0,0.00016438,2]
[369040656,1751442645347,-490.0,0.00016438,2]
[369040657,1751442645357,-490.0,0.00016438,2]
[369040658,1751442645366,-490.0,0.00016438,2]
[369040659,1751442645376,-490.0,0.00016438,2]
[369040660,1751442645385,-1222.14,0.00016438,2]
[369040661,1751442645395,-490.0,0.00016438,2]
[369040662,1751442645404,-2076.18,0.00016438,2]
[369040663,1751442645414,-490.0,0.00016438,2]
[369040664,1751442645423,-490.0,0.00016438,2]
[369040665,1751442645433,-962.91,0.00016438,2]
[369040666,1751442645442,-1384.15,0.00016438,2]
[369040667,1751442645451,-490.0,0.00016438,2]
[369040668,1751442645461,-1188.53,0.00016438,2]
[369040669,1751442645470,-490.0,0.00016438,2]
[369040670,1751442645480,-490.0,0.00016438,2]
[369040671,1751442645490,-490.0,0.00016438,2]
[369040672,1751442645499,-490.0,0.00016438,2]
[369040673,1751442645509,-490.0,0.00016438,2]
[369040674,1751442645519,-501.10227761,0.00016438,2]
[369040675,1751442645528,-1074.87,0.00016438,2]
[369040676,1751442645538,-490.0,0.00016438,2]
[369040677,1751442645548,-2289.08,0.00016438,2]
[369040678,1751442645557,-490.0,0.00016438,2]
[369040679,1751442645567,-490.0,0.00016438,2]
[369040680,1751442645576,-490.0,0.00016438,2]
[369040681,1751442645589,-493.10081115,0.00016438,2]
[369040682,1751442645598,-490.0,0.00016438,2]
[369040683,1751442645608,-491.46371843,0.00016438,2]
[369040684,1751442645618,-757.99,0.00016438,2]
[369040685,1751442645627,-490.0,0.00016438,2]
[369040686,1751442645637,-490.0,0.00016438,2]
[369040687,1751442645646,-490.0,0.00016438,2]
[369040688,1751442645656,-1171.49,0.00016438,2]
[369040689,1751442645666,-490.0,0.00016438,2]
[369040690,1751442645677,-1000.0,0.00016438,2]
[369040691,1751442645686,-490.0,0.00016438,2]
[369040692,1751442645695,-490.0,0.00016438,2]
[369040693,1751442645705,-490.0,0.00016438,2]
[369040694,1751442645714,-490.0,0.00016438,2]
[369040695,1751442645724,-1369.66,0.00016438,2]
[369040696,1751442645733,-906.55,0.00016438,2]
[369040697,1751442645743,-490.0,0.00016438,2]
[369040698,1751442645753,-1402.24,0.00016438,2]
[369040699,1751442645763,-583.68,0.00016438,2]
[369040700,1751442645773,-490.0,0.00016438,2]
[369040701,1751442645782,-490.0,0.00016438,2]
[369040702,1751442645793,-490.0,0.00016438,2]
[369040703,1751442645803,-490.0,0.00016438,2]
[369040704,1751442645812,-428.51245825,0.00016438,2]
[369040705,1751442645822,-490.0,0.00016438,2]
[369040706,1751442645831,-490.0,0.00016438,2]
[369040707,1751442645840,-490.0,0.00016438,2]
[369040708,1751442645850,-490.0,0.00016438,2]
[369040709,1751442645859,-490.0,0.00016438,2]
[369040710,1751442645868,-490.0,0.00016438,2]
[369040711,1751442645878,-490.0,0.00016438,2]
[369040712,1751442645888,-490.0,0.00016438,2]
[369040713,1751442645897,-490.0,0.00016438,2]
[369040714,1751442645907,-490.0,0.00016438,2]
[369040715,1751442645918,-374.06172876,0.00016438,2]
[369040716,1751442645927,-490.0,0.00016438,2]
[369040717,1751442645938,-965.39,0.00016438,2]
[369040718,1751442645948,-16591.24,0.00016438,2]
[369040719,1751442645959,-490.0,0.00016438,2]
[369040720,1751442645969,-490.0,0.00016438,2]
[369040721,1751442645979,-490.0,0.00016438,2]
[369040722,1751442645989,-490.0,0.00016438,2]
[369040724,1751442645999,-1003.72,0.00016438,2]
[369040726,1751442646009,-490.0,0.00016438,2]
[369040727,1751442646019,-539.83,0.00016438,2]
[369040728,1751442646028,-776.33,0.00016438,2]
[369040729,1751442646037,-490.0,0.00016438,2]
[369040730,1751442646047,-490.0,0.00016438,2]
[369040731,1751442646057,-490.0,0.00016438,2]
[369040732,1751442646067,-490.0,0.00016438,2]
[369040733,1751442646076,-490.0,0.00016438,2]
[369040734,1751442646085,-3936.38,0.00016438,2]
[369040735,1751442646095,-490.0,0.00016438,2]
[369040736,1751442646105,-490.0,0.00016438,2]
[369040737,1751442646114,-490.0,0.00016438,2]
[369040738,1751442646124,-490.0,0.00016438,2]
[369040739,1751442646133,-490.0,0.00016438,2]
[369040740,1751442646143,-490.0,0.00016438,2]
[369040741,1751442646152,-490.0,0.00016438,2]
[369040742,1751442646163,-509.8433174,0.00016438,2]
[369040743,1751442646173,-1378.23,0.00016438,2]
[369040744,1751442646183,-490.0,0.00016438,2]
[369040745,1751442646192,-1279.9,0.00016438,2]
[369040746,1751442646202,-490.0,0.00016438,2]
[369040747,1751442646211,-490.0,0.00016438,2]
[369040748,1751442646221,-490.0,0.00016438,2]
[369040750,1751442646230,-490.0,0.00016438,2]
[369040751,1751442646240,-490.0,0.00016438,2]
[369040753,1751442646250,-491.07007285,0.00016438,2]
[369040755,1751442646259,-490.0,0.00016438,2]
[369040778,1751442646429,-490.0,0.00016438,2]
[369040780,1751442646438,-490.0,0.00016438,2]
[369040782,1751442646447,-490.0,0.00016438,2]
[369040784,1751442646457,-838.78,0.00016438,2]
[369040785,1751442646466,-490.0,0.00016438,2]
[369040787,1751442646476,-1409.86,0.00016438,2]
[369040789,1751442646485,-490.0,0.00016438,2]
[369040791,1751442646495,-490.0,0.00016438,2]
[369040792,1751442646504,-490.0,0.00016438,2]
[369040793,1751442646514,-492.78409003,0.00016438,2]
[369040794,1751442646523,-490.0,0.00016438,2]
[369040795,1751442646532,-1462.13,0.00016438,2]
[369040797,1751442646541,-490.0,0.00016438,2]
[369040798,1751442646551,-2918.05,0.00016438,2]
[369040799,1751442646560,-490.0,0.00016438,2]
[369040801,1751442646570,-490.0,0.00016438,2]
[369040802,1751442646579,-490.0,0.00016438,2]
[369040804,1751442646591,-490.0,0.00016438,2]
[369040806,1751442646601,-490.0,0.00016438,2]
[369040808,1751442646610,-1124.81,0.00016438,2]
[369040809,1751442646619,-490.0,0.00016438,2]
[369040811,1751442646630,-490.0,0.00016438,2]
[369040813,1751442646640,-6805.95,0.00016438,2]
[369040815,1751442646649,-490.0,0.00016438,2]
[369040817,1751442646660,-814.03,0.00016438,2]
[369040819,1751442646671,-156.50988848,0.00016438,2]
[369040821,1751442646680,-490.0,0.00016438,2]
[369040823,1751442646690,-6876.69,0.00016438,2]
[369040824,1751442646699,-605.03,0.00016438,2]
[369040826,1751442646709,-490.0,0.00016438,2]
[369040828,1751442646718,-4536.42,0.00016438,2]
[369040830,1751442646727,-490.0,0.00016438,2]
[369040832,1751442646737,-1175.14,0.00016438,2]
[369040834,1751442646747,-490.0,0.00016438,2]
[369040835,1751442646756,-1809.51,0.00016438,2]
[369040837,1751442646766,-490.0,0.00016438,2]
[369040839,1751442646775,-490.0,0.00016438,2]
[369040841,1751442646784,-2988.79,0.00016438,2]
[369040843,1751442646794,-1093.01,0.00016438,2]
[369040845,1751442646803,-490.0,0.00016438,2]
[369040847,1751442646814,-490.0,0.00016438,2]
[369040849,1751442646823,-573.21,0.00016438,2]
[369040850,1751442646832,-490.0,0.00016438,2]
[369040852,1751442646842,-490.0,0.00016438,2]
[369040854,1751442646852,-490.0,0.00016438,2]
[369040856,1751442646862,-490.0,0.00016438,2]
[369040858,1751442646871,-490.0,0.00016438,2]
[369040860,1751442646881,-490.0,0.00016438,2]
[369040862,1751442646891,-490.0,0.00016438,2]
[369040863,1751442646900,-490.0,0.00016438,2]
[369040865,1751442646910,-490.0,0.00016438,2]
[369040867,1751442646919,-490.0,0.00016438,2]
[369040869,1751442646929,-490.0,0.00016438,2]
[369040870,1751442646939,-490.0,0.00016438,2]
[369040872,1751442646948,-1493.98,0.00016438,2]
[369040873,1751442646957,-3811.8,0.00016438,2]
[369040875,1751442646967,-654.27,0.00016438,2]
[369040877,1751442646976,-490.0,0.00016438,2]
[369040879,1751442646986,-490.0,0.00016438,2]
[369040881,1751442647000,-495.18574231,0.00016438,2]
[369040883,1751442647010,-490.0,0.00016438,2]
[369040884,1751442647020,-490.0,0.00016438,2]
[369040885,1751442647029,-1871.33,0.00016438,2]
[369040886,1751442647038,-490.0,0.00016438,2]
[369040887,1751442647049,-490.0,0.00016438,2]
[369040888,1751442647058,-490.0,0.00016438,2]
[369040889,1751442647068,-490.0,0.00016438,2]
[369040890,1751442647077,-490.0,0.00016438,2]
[369040891,1751442647086,-490.0,0.00016438,2]
[369040892,1751442647095,-490.0,0.00016438,2]
[369040893,1751442647104,-490.0,0.00016438,2]
[369040894,1751442647114,-490.0,0.00016438,2]
[369040895,1751442647123,-597.52,0.00016438,2]
[369040896,1751442647132,-500.64734688,0.00016438,2]
[369040897,1751442647142,-490.0,0.00016438,2]
[369040898,1751442647151,-490.0,0.00016438,2]
[369040899,1751442647160,-781.74,0.00016438,2]
[369040900,1751442647170,-1073.69,0.00016438,2]
[369040901,1751442647180,-572.04,0.00016438,2]
[369040902,1751442647189,-1208.09,0.00016438,2]
[369040903,1751442647199,-490.0,0.00016438,2]
[369040904,1751442647208,-490.0,0.00016438,2]
[369040905,1751442647217,-490.0,0.00016438,2]
[369040906,1751442647226,-490.0,0.00016438,2]
[369040907,1751442647235,-1850.26,0.00016438,2]
[369040908,1751442647244,-816.44,0.00016438,2]
[369040909,1751442647253,-490.0,0.00016438,2]
[369040910,1751442647263,-490.0,0.00016438,2]
[369040911,1751442647272,-490.0,0.00016438,2]
[369040912,1751442647283,-490.0,0.00016438,2]
[369040913,1751442647292,-490.0,0.00016438,2]
[369040914,1751442647302,-490.0,0.00016438,2]
[369040915,1751442647311,-490.0,0.00016438,2]
[369040916,1751442647321,-490.0,0.00016438,2]
[369040917,1751442647331,-490.0,0.00016438,2]
[369040918,1751442647340,-793.2,0.00016438,2]
[369040919,1751442647349,-490.0,0.00016438,2]
[369040920,1751442647358,-1756.71,0.00016438,2]
[369040921,1751442647368,-490.0,0.00016438,2]
[369040922,1751442647377,-2435.08,0.00016438,2]
[369040923,1751442647387,-490.0,0.00016438,2]
[369040924,1751442647397,-490.0,0.00016438,2]
[369040925,1751442647406,-490.0,0.00016438,2]
[369040926,1751442647417,-768.79434616,0.00016438,2]
[369040927,1751442647456,-1760.55815351,0.00016438,2]
[369040928,1751442647468,-102.75750033,0.00016438,2]
[369040929,1751442647477,-1857.33,0.00016438,2]
[369040930,1751442647487,-1038.25,0.00016438,2]
[369040931,1751442647497,-490.0,0.00016438,2]
[369040932,1751442647506,-3387.42520806,0.00016438,2]
[369040933,1751442647519,-1172.96668734,0.00016438,2]
[369040934,1751442647531,-518.08735631,0.00016438,2]
[369040935,1751442647542,-1875.52074829,0.00016438,2]
[369040936,1751442647552,-490.0,0.00016438,2]
[369040937,1751442647562,-490.0,0.00016438,2]
[369040938,1751442647572,-89.4143961,0.00016438,2]
[369040939,1751442647585,-860.9756039,0.00016438,2]
[369040940,1751442647596,-490.0,0.00016438,2]
[369040941,1751442647606,-500.0,0.00016438,2]
[369040942,1751442647616,-490.0,0.00016438,2]
[369040943,1751442647626,-490.0,0.00016438,2]
[369040944,1751442647635,-490.0,0.00016438,2]
[369040945,1751442647645,-490.0,0.00016438,2]
[369040946,1751442647655,-2787.43,0.00016438,2]
[369040947,1751442647665,-806.02,0.00016438,2]
[369040948,1751442647675,-490.0,0.00016438,2]
[369040949,1751442647684,-490.0,0.00016438,2]
[369040950,1751442647694,-490.0,0.00016438,2]
[369040951,1751442647703,-490.0,0.00016438,2]
[369040952,1751442647714,-490.0,0.00016438,2]
[369040953,1751442647723,-490.0,0.00016438,2]
[369040954,1751442647732,-490.0,0.00016438,2]
[369040955,1751442647741,-1308.92,0.00016438,2]
[369040956,1751442647751,-492.00129036,0.00016438,2]
[369040957,1751442647760,-490.0,0.00016438,2]
[369040958,1751442647770,-490.0,0.00016438,2]
[369040959,1751442647779,-490.0,0.00016438,2]
[369040960,1751442647789,-2041.04,0.00016438,2]
[369040961,1751442647799,-822.08,0.00016438,2]
[369040962,1751442647809,-490.0,0.00016438,2]
[369040963,1751442647818,-490.0,0.00016438,2]
[369040964,1751442647828,-1129.89,0.00016438,2]
[369040965,1751442647838,-490.0,0.00016438,2]
[369040966,1751442647848,-490.0,0.00016438,2]
[369040967,1751442647857,-1473.64310574,0.00016438,2]
[369040968,1751442647896,-16.90689426,0.00016438,2]
[369040969,1751442647907,-490.0,0.00016438,2]
[369040970,1751442647923,-1031.46,0.00016438,2]
[369040971,1751442647945,-490.0,0.00016438,2]
[369040972,1751442647967,-2795.81,0.00016438,2]
[369040973,1751442647987,-1490.14,0.00016438,2]
[369040974,1751442647999,-490.0,0.00016438,2]
[369040975,1751442648009,-490.0,0.00016438,2]
[369040976,1751442648021,-490.0,0.00016438,2]
[369040977,1751442648032,-747.64,0.00016438,2]
[369040978,1751442648045,-490.0,0.00016438,2]
[369040979,1751442648057,-490.0,0.00016438,2]
[369040980,1751442648067,-490.0,0.00016438,2]
[369040981,1751442648078,-490.0,0.00016438,2]
[369040982,1751442648088,-490.0,0.00016438,2]
[369040983,1751442648099,-490.0,0.00016438,2]
[369040984,1751442648111,-546.52,0.00016438,2]
[369040985,1751442648122,-1798.63,0.00016438,2]
[369040986,1751442648131,-490.0,0.00016438,2]
[369040987,1751442648143,-490.0,0.00016438,2]
[369040988,1751442648153,-3034.43,0.00016438,2]
[369040989,1751442648163,-490.0,0.00016438,2]
[369040990,1751442648175,-490.0,0.00016438,2]
[369040991,1751442648184,-1141.34,0.00016438,2]
[369040992,1751442648196,-490.0,0.00016438,2]
[369040993,1751442648206,-1145.56,0.00016438,2]
[369040994,1751442648215,-2156.42,0.00016438,2]
[369040995,1751442648224,-2992.68,0.00016438,2]
[369040996,1751442648234,-215.63293022,0.00016438,2]
[369040997,1751442648244,-490.0,0.00016438,2]
[369040998,1751442648254,-1403.07,0.00016438,2]
[369040999,1751442648263,-490.0,0.00016438,2]
[369041000,1751442648273,-1244.85,0.00016438,2]
[369041001,1751442648282,-490.0,0.00016438,2]
[369041002,1751442648291,-3056.79,0.00016438,2]
[369041003,1751442648301,-490.0,0.00016438,2]
[369041004,1751442648310,-1438.77,0.00016438,2]
[369041005,1751442648320,-490.0,0.00016438,2]
[369041006,1751442648329,-146.56498109,0.00016438,2]
[369041007,1751442649044,-343.43501891,0.00016438,2]
[369041008,1751442649054,-490.0,0.00016438,2]
[369041009,1751442649063,-490.0,0.00016438,2]
[369041010,1751442649073,-1538.2,0.00016438,2]
[369041011,1751442649082,-490.0,0.00016438,2]
[369041012,1751442649092,-490.0,0.00016438,2]
[369041013,1751442649101,-941.33,0.00016438,2]
[369041014,1751442649110,-490.0,0.00016438,2]
[369041015,1751442649120,-1241.33,0.00016438,2]
[369041016,1751442649129,-490.0,0.00016438,2]
[369041017,1751442649139,-6908.91162211,0.00016438,2]
[369041018,1751442649161,-648.47100846,0.00016438,2]
[369041019,1751442649554,-2924.53879719,0.00016438,2]
[369041020,1751442650164,-4886.40857224,0.00016438,2]
[369041021,1751442650174,-490.0,0.00016438,2]
[369041022,1751442650184,-1218.75,0.00016438,2]
[369041023,1751442650194,-490.0,0.00016438,2]
[369041024,1751442650203,-878.25,0.00016438,2]
[369041025,1751442650213,-5925.7,0.00016438,2]
[369041026,1751442650223,-490.0,0.00016438,2]
[369041027,1751442650233,-490.0,0.00016438,2]
[369041028,1751442650243,-490.0,0.00016438,2]
[369041029,1751442650252,-490.0,0.00016438,2]
[369041030,1751442650262,-1205.62,0.00016438,2]
[369041031,1751442650272,-490.0,0.00016438,2]
[369041032,1751442650282,-125.44306635,0.00016438,2]
[369041033,1751442650295,-364.55693365,0.00016438,2]
[369041034,1751442650304,-490.0,0.00016438,2]
[369041035,1751442650314,-910.82,0.00016438,2]
[369041036,1751442650324,-490.0,0.00016438,2]
[369041037,1751442650334,-490.0,0.00016438,2]
[369041038,1751442650343,-490.0,0.00016438,2]
[369041039,1751442650354,-3194.68,0.00016438,2]
[369041040,1751442650363,-532.45,0.00016438,2]
[369041041,1751442650373,-346.49160341,0.00016438,2]
[369041042,1751442673015,2283.56225253,0.00016338,2]
[369041043,1751442721585,159.6658062,0.00016338,2]
[369041044,1751442723975,220.8513,0.00016338,2]
[369041045,1751442741885,1000.0,0.00016338,2]
[369041046,1751442778574,3726.4685,0.00016338,2]
[369041047,1751442790857,1962.1004,0.00016338,2]
[369041048,1751442798223,1000.0,0.00015519,2]
[369041049,1751442815297,5000.0,0.00016338,2]
[369041051,1751442822758,542.0,0.0002739,120]
[369041052,1751442824841,1426.12526771,0.00016338,2]
[369041053,1751442824866,20000.0,0.00016338,2]
[369041054,1751442825361,1464.0,0.0002739,120]
[369041055,1751442826136,1441.0,0.0002739,120]
[369041058,1751442887239,249.0,0.0002739,120]
[369041061,1751442976865,160.03,0.00013699,2]
[369041062,1751443177157,218.5,0.00027397,120]
[369041167,1751443832698,-188.0,0.00014871,2]
[369041168,1751443832708,-190.46,0.00015253,2]
[369041169,1751443832718,-190.46,0.00015257,2]
[369041170,1751443832727,-190.46,0.00015261,2]
[369041171,1751443832737,-190.46,0.00015265,2]
[369041172,1751443832746,-190.46,0.00015269,2]
[369041173,1751443832757,-190.46,0.00015273,2]
[369041174,1751443832766,-190.46,0.00015277,2]
[369041175,1751443832776,-200.0,0.00015278,2]
[369041176,1751443832785,-190.46,0.00015281,2]
[369041177,1751443832794,-190.46,0.00015285,2]
[369041178,1751443832803,-190.46,0.00015289,2]
[369041179,1751443832813,-190.46,0.00015293,2]
[369041181,1751443832822,-190.46,0.00015297,2]
[369041183,1751443832831,-200.0,0.00015301,2]
[369041184,1751443832841,-190.46,0.00015301,2]
[369041185,1751443832850,-190.46,0.00015305,2]
[369041186,1751443832860,-190.46,0.00015309,2]
[369041187,1751443832870,-190.46,0.00015313,2]
[369041188,1751443832879,-190.46,0.00015317,2]
[369041189,1751443832889,-171.69,0.0001532,2]
[369041190,1751443832898,-190.46,0.00015321,2]
[369041191,1751443832907,-190.46,0.00015325,2]
[369041193,1751443832917,-202.74,0.00015327,2]
[369041195,1751443832927,-1200.0,0.00015329,2]
[369041196,1751443832937,-190.46,0.00015329,2]
[369041197,1751443832947,-1302.77,0.00015358,2]
[369041198,1751443832956,-300.0,0.00015358,2]
[369041199,1751443832965,-167.41,0.00015382,2]
[369041200,1751443832978,-948.6,0.00015391,2]
[369041201,1751443832987,-23900.0,0.00015398,2]
[369041202,1751443832997,-150.0,0.00015408,2]
[369041203,1751443833006,-662.47,0.00015408,2]
[369041204,1751443833017,-250.0,0.00015499,2]
[369041205,1751443833027,-300.0,0.000158,5]
[369041206,1751443833037,-207.4,0.00015868,2]
[369041207,1751443833047,-6912.642,0.00015868,2]
[369041208,1751443833058,-600.0,0.000159,5]
[369041209,1751443833068,-5237.92380641,0.000159,2]
[369041210,1751443833077,-300.0,0.00015903,2]
[369041212,1751443833087,-7168.409754,0.00015923,2]
[369041214,1751443833096,-7433.6409149,0.00015978,2]
[369041216,1751443833106,-163.94,0.00015978,2]
[369041217,1751443833116,-455.15,0.00015978,2]
[369041218,1751443833126,-1001.79848005,0.00016014,2]
[369041219,1751443833135,-7708.68562875,0.00016033,2]
[369041220,1751443833146,-456.47,0.00016078,2]
[369041221,1751443833155,-163.94,0.00016078,2]
[369041222,1751443833164,-500.0,0.00016082,2]
[369041223,1751443833174,-7993.90699701,0.00016088,2]
[369041224,1751443833184,-300.0,0.00016099,2]
[369041225,1751443833194,-30939.13615679,0.00016106,2]
[369041226,1751443833204,-9999.99,0.00016116,2]
[369041227,1751443833214,-229.2,0.00016116,2]
[369041228,1751443833223,-299.99,0.00016116,2]
[369041229,1751443833233,-583.7,0.00016116,2]
[369041230,1751443833243,-177.94780538,0.00016128,2]
[369041231,1751443833254,-8289.6815559,0.00016143,2]
[369041232,1751443833264,-163.94,0.00016178,2]
[369041233,1751443833274,-150.0,0.00016178,2]
[369041234,1751443833284,-150.0,0.00016178,2]
[369041235,1751443833294,-163.94,0.00016178,2]
[369041236,1751443833303,-456.47,0.00016178,2]
[369041237,1751443833314,-163.94,0.00016178,2]
[369041238,1751443833324,-150.0,0.00016178,2]
[369041239,1751443833333,-456.47,0.00016178,2]
[369041240,1751443833343,-163.94,0.00016178,2]
[369041241,1751443833353,-300.0,0.00016178,2]
[369041242,1751443833362,-456.47,0.00016178,2]
[369041243,1751443833372,-163.94,0.00016178,2]
[369041244,1751443833381,-3041.14151105,0.00016183,2]
[369041245,1751443833391,-8596.39977347,0.00016198,2]
[369041246,1751443833401,-6778.5294,0.00016228,2]
[369041247,1751443833410,-273.0139,0.00016228,2]
[369041248,1751443833419,-27594.03900091,0.00016243,2]
[369041249,1751443833428,-500.0,0.00016252,2]
[369041250,1751443833438,-415.14274842,0.00016252,2]
[369041251,1751443833447,-500.0,0.00016252,2]
[369041252,1751443833456,-485.7054314,0.00016252,2]
[369041253,1751443833466,-8914.46656509,0.00016253,2]
[369041254,1751443833475,-1000.0,0.00016283,2]
[369041255,1751443833484,-150.99,0.0001629,2]
[369041256,1751443833493,-1606.85017047,0.0001629,2]
[369041257,1751443833507,-5993.89592653,0.0001629,2]
[369041258,1751443833519,-2399.243903,0.0001629,2]
[369041259,1751443833528,-3041.14151097,0.00016292,2]
[369041260,1751443833538,-163.0,0.000163,2]